bitfinex/quotes_SOLUSD_20241216
["timestamp","ask_amount","ask_price","bid_price","bid_amount"]
[1734308596851,1.6238,225.12,225.09,4.99188659]
[1734308597048,5.5519,225.15,225.11,4.99188659]
[1734308597979,5.5519,225.15,225.0,6.4857]
[1734308597980,5.5519,225.15,225.08,4.99188659]
[1734308598681,5.5519,225.15,225.06,4.99188659]
[1734308598976,5.5519,225.15,225.04,5.0]
[1734308598977,5.5519,225.15,225.04,9.99188659]
[1734308599675,5.5519,225.15,225.07,4.99188659]
[1734308600389,5.5523,225.13,225.07,4.99188659]
[1734308603092,5.5523,225.13,225.04,5.0]
[1734308603263,16.6569,225.13,225.04,5.0]
[1734308603769,16.6569,225.13,225.03,4.99188659]
[1734308604162,16.6569,225.13,225.03,9.99188659]
[1734308604757,16.6569,225.13,225.03,5.0]
[1734308605154,16.6569,225.13,225.03,9.99188659]
[1734308606680,16.6569,225.13,225.03,5.0]
[1734308609163,16.6569,225.13,225.03,4.99188659]
[1734308609365,5.5523,225.13,225.05,4.99188659]
[1734308609580,5.5523,225.13,225.05,9.99188659]
[1734308610382,5.5523,225.13,224.95,18.25554462]
[1734308610383,16.6569,225.13,225.03,4.99188659]
[1734308610567,16.6569,225.13,225.03,9.99188659]
[1734308610971,16.6569,225.13,225.03,5.0]
[1734308611172,16.6569,225.13,225.05,4.99188659]
[1734308611368,5.5514,225.17,225.11,4.99188659]
[1734308613184,5.5514,225.17,225.09,4.99188659]
[1734308613494,5.5514,225.17,225.13,4.99188659]
[1734308614580,5.5514,225.17,225.08,4.99188659]
[1734308614980,5.5514,225.17,225.07,5.0]
[1734308615189,5.5514,225.17,225.08,4.99188659]
[1734308615492,5.5514,225.17,225.07,5.0]
[1734308615677,5.5514,225.17,225.08,4.99188659]
[1734308616076,5.5514,225.17,225.07,5.0]
[1734308616393,16.6541,225.17,225.07,5.0]
[1734308617793,16.6541,225.17,225.03,5.0]
[1734308618097,16.6541,225.17,225.07,4.99188659]
[1734308619095,16.6541,225.17,225.08,5.0]
[1734308620178,5.5514,225.17,225.11,4.99188659]
[1734308621301,5.5514,225.17,225.1,5.0]
[1734308621873,5.5514,225.17,225.09,4.99188659]
[1734308624711,5.5514,225.17,225.11,4.99188659]
[1734308625909,5.5514,225.17,225.09,4.99188659]
[1734308626413,5.5514,225.17,225.04,5.0]
[1734308626414,16.6541,225.17,225.04,5.0]
[1734308626594,6.222,225.16,225.04,5.0]
[1734308627282,6.222,225.16,225.01,9.99188659]
[1734308627483,6.222,225.16,225.04,5.0]
[1734308627788,16.6555,225.15,225.04,5.0]
[1734308628809,16.6569,225.13,225.04,9.99188659]
[1734308630104,5.5523,225.13,225.07,4.99188659]
[1734308631807,5.5523,225.13,225.06,5.0]
[1734308635398,5.5523,225.13,224.95,12.30069951]
[1734308635399,5.5523,225.13,225.04,5.0]
[1734308636422,1.5205,225.12,225.0,5.0]
[1734308636604,8.32141363,225.12,225.0,5.0]
[1734308636807,8.32141363,225.12,224.98,9.99188659]
[1734308637011,8.32141363,225.12,225.0,5.0]
[1734308637239,6.80091363,225.11,225.0,5.0]
[1734308637538,16.6591,225.1,225.0,5.0]
[1734308638144,16.6591,225.1,224.98,4.99188659]
[1734308638341,16.6591,225.1,225.0,5.0]
[1734308638707,5.5535,225.08,225.02,4.99188659]
[1734308639040,5.5535,225.08,225.06,4.99188659]
[1734308639218,5.5535,225.08,225.06,9.99188659]
[1734308639618,7.0732,225.12,225.08,4.99188659]
[1734308639909,7.0732,225.12,225.06,4.99188659]
[1734308640113,7.0732,225.12,225.06,9.99188659]
[1734308640336,7.0732,225.12,225.08,4.99188659]
[1734308641082,5.5517,225.16,225.11,4.99188659]
[1734308641217,5.5517,225.16,225.11,9.99188659]
[1734308643061,5.5507,225.2,225.17,4.99188659]
[1734308643413,1.5964,225.24,225.19,4.99188659]
[1734308643823,1.5964,225.24,225.22,4.99188659]
[1734308644437,5.5498,225.23,225.13,9.99188659]
[1734308645131,5.5498,225.23,225.16,5.0]
[1734308646451,5.5498,225.23,225.15,4.99188659]
[1734308646743,5.5498,225.23,225.14,5.0]
[1734308646924,5.5498,225.23,225.13,4.99188659]
[1734308647117,5.5498,225.23,225.15,4.99188659]
[1734308647351,5.5498,225.23,225.13,4.99188659]
[1734308647546,5.5498,225.23,225.16,5.0]
[1734308647945,5.5498,225.23,225.17,4.99188659]
[1734308649537,5.5498,225.23,225.19,4.99188659]
[1734308650566,5.5489,225.27,225.21,4.99188659]
[1734308650723,5.5489,225.27,225.25,4.99188659]
[1734308651033,5.5479,225.31,225.27,4.99188659]
[1734308651225,13.60182727,225.35,225.29,4.99188659]
[1734308651226,6.80091363,225.35,225.29,4.99188659]
[1734308651418,7.1474,225.36,225.31,4.99188659]
[1734308651621,7.1474,225.36,225.33,4.99188659]
[1734308652045,7.1474,225.36,225.31,4.99188659]
[1734308653161,18.2407,225.36,225.26,4.99188659]
[1734308653351,18.2407,225.36,225.24,4.99188659]
[1734308653556,18.2407,225.36,225.23,5.0]
[1734308654127,18.2407,225.36,225.24,4.99188659]
[1734308654751,18.2407,225.36,225.28,4.99188659]
[1734308654969,7.1474,225.36,225.29,4.99188659]
[1734308655639,7.1474,225.36,225.28,5.0]
[1734308655849,7.1474,225.36,225.26,4.99188659]
[1734308656057,7.1474,225.36,225.27,5.0]
[1734308656357,7.1474,225.36,225.26,4.99188659]
[1734308656563,7.1474,225.36,225.27,5.0]
[1734308657143,7.1474,225.36,225.25,5.0]
[1734308657342,18.2407,225.36,225.24,4.99188659]
[1734308657544,18.2407,225.36,225.24,9.99188659]
[1734308657748,18.2407,225.36,225.28,4.99188659]
[1734308658033,18.2407,225.36,225.16,12.30005432]
[1734308658034,7.1474,225.36,225.3,9.99188659]
[1734308658360,7.1474,225.36,225.3,4.99188659]
[1734308658764,7.1474,225.36,225.3,9.99188659]
[1734308658964,7.1474,225.36,225.3,5.0]
[1734308659132,7.1474,225.36,225.3,4.99188659]
[1734308659464,7.1474,225.36,225.32,4.99188659]
[1734308659835,7.1474,225.36,225.3,9.99188659]
[1734308660256,5.5468,225.36,225.32,4.99188659]
[1734308660435,5.5468,225.36,225.33,5.0]
[1734308660637,12.7481,225.44,225.35,5.0]
[1734308660638,5.5457,225.4,225.35,5.0]
[1734308660934,5.5457,225.4,225.34,4.99188659]
[1734308661143,5.5457,225.4,225.32,4.99188659]
[1734308661347,5.5457,225.4,225.33,5.0]
[1734308661564,5.5457,225.4,225.3,4.99188659]
[1734308662156,5.5457,225.4,225.31,5.0]
[1734308662463,5.5457,225.4,225.33,5.0]
[1734308662663,5.5457,225.4,225.32,4.99188659]
[1734308663140,5.5457,225.4,225.3,9.99188659]
[1734308663346,5.5457,225.4,225.33,4.99188659]
[1734308665564,5.5457,225.4,225.31,4.99188659]
[1734308665956,5.5457,225.4,225.32,5.0]
[1734308666140,5.5457,225.4,225.31,9.99188659]
[1734308666335,5.5457,225.4,225.31,4.99188659]
[1734308667476,5.5457,225.4,225.27,4.99188659]
[1734308667979,13.09459034,225.39,225.24,4.99188659]
[1734308668339,2.62598342,225.36,225.24,9.99188659]
[1734308668745,2.62598342,225.36,225.24,5.0]
[1734308668946,1.574,225.34,225.2,4.99188659]
[1734308669138,1.574,225.34,225.19,5.0]
[1734308669335,20.41949034,225.34,225.18,4.99188659]
[1734308669535,20.41949034,225.34,225.22,4.99188659]
[1734308669765,7.07949034,225.34,225.22,4.99188659]
[1734308670180,7.07949034,225.34,225.26,4.99188659]
[1734308670474,1.574,225.34,225.28,4.99188659]
[1734308671064,5.5474,225.33,225.28,9.99188659]
[1734308671795,5.5474,225.33,225.28,4.99188659]
[1734308671962,5.5474,225.33,225.25,4.99188659]
[1734308672165,5.5474,225.33,225.26,5.0]
[1734308672555,5.5474,225.33,225.25,4.99188659]
[1734308672758,5.5474,225.33,225.21,4.99188659]
[1734308672759,16.6422,225.33,225.21,4.99188659]
[1734308673196,16.6422,225.33,225.24,4.99188659]
[1734308673197,24.55032866,225.33,225.24,4.99188659]
[1734308673361,16.6422,225.33,225.24,4.99188659]
[1734308674801,16.6422,225.33,225.25,5.0]
[1734308674962,5.5474,225.33,225.31,4.99188659]
[1734308677108,5.5461,225.38,225.31,4.99188659]
[1734308677399,5.5461,225.38,225.34,9.99188659]
[1734308677761,5.5461,225.38,225.34,4.99188659]
[1734308679107,5.5461,225.38,225.34,9.99188659]
[1734308680593,5.5452,225.42,225.39,4.99188659]
[1734308680892,5.5452,225.42,225.34,5.0]
[1734308680893,5.5452,225.42,225.35,4.99188659]
[1734308683697,5.5452,225.42,225.33,4.99188659]
[1734308684416,5.5452,225.42,225.32,5.0]
[1734308685914,5.5452,225.42,225.31,4.99188659]
[1734308686122,5.5452,225.42,225.36,4.99188659]
[1734308686919,5.5452,225.42,225.4,9.99188659]
[1734308687186,5.5443,225.46,225.42,4.99188659]
[1734308687418,5.5443,225.46,225.42,9.99188659]
[1734308688507,5.5443,225.46,225.4,9.99188659]
[1734308688713,5.5443,225.46,225.4,5.0]
[1734308689011,5.5443,225.46,225.38,4.99188659]
[1734308689313,5.5443,225.46,225.45,4.99188659]
[1734308689653,8.69810518,225.5,225.45,4.99188659]
[1734308690295,7.10240518,225.5,225.49,4.99188659]
[1734308690497,7.10240518,225.5,225.46,9.99188659]
[1734308690719,11.0842,225.55,225.46,5.0]
[1734308690883,2.70809171,225.54,225.46,9.99188659]
[1734308691620,2.70809171,225.54,225.43,5.0]
[1734308692118,2.70809171,225.54,225.44,4.99188659]
[1734308692724,16.6273,225.53,225.44,4.99188659]
[1734308693095,16.6273,225.53,225.43,5.0]
[1734308693416,27.7122,225.53,225.4,4.99188659]
[1734308693614,8.0125,225.52,225.35,9.99188659]
[1734308693821,13.51799034,225.52,225.35,9.99188659]
[1734308694003,26.85799034,225.52,225.35,9.99188659]
[1734308694403,26.85799034,225.52,225.35,5.0]
[1734308694610,32.35537061,225.52,225.35,5.0]
[1734308694800,29.9688,225.51,225.35,5.0]
[1734308695002,35.47429034,225.51,225.35,9.99188659]
[1734308695312,35.47429034,225.51,225.35,5.0]
[1734308695512,5.50549034,225.5,225.35,9.99188659]
[1734308696098,5.50549034,225.5,225.37,4.99188659]
[1734308696293,5.50549034,225.5,225.37,9.99188659]
[1734308696524,5.5434,225.49,225.37,9.99188659]
[1734308696698,13.70613291,225.49,225.37,9.99188659]
[1734308697152,5.5434,225.49,225.37,9.99188659]
[1734308697825,5.5434,225.49,225.37,5.0]
[1734308698000,33.22269034,225.49,225.33,9.99188659]
[1734308698526,5.50549034,225.48,225.33,9.99188659]
[1734308698698,13.34,225.47,225.33,9.99188659]
[1734308698895,16.6326,225.46,225.38,4.99188659]
[1734308699115,16.6326,225.46,225.35,5.0]
[1734308699116,16.6326,225.46,225.36,4.99188659]
[1734308699440,16.6326,225.46,225.38,4.99188659]
[1734308699733,16.6326,225.46,225.4,4.99188659]
[1734308701705,5.5433,225.5,225.48,4.99188659]
[1734308702035,5.5433,225.5,225.48,9.99188659]
[1734308702605,16.6262,225.55,225.48,9.99188659]
[1734308702849,16.6262,225.55,225.49,5.0]
[1734308703006,2.6603695,225.53,225.5,4.99188659]
[1734308703509,2.6603695,225.53,225.48,4.99188659]
[1734308703720,2.6603695,225.53,225.39,6.4062]
[1734308703721,2.6603695,225.53,225.45,5.0]
[1734308703906,2.6603695,225.53,225.46,9.99188659]
[1734308704108,2.6603695,225.53,225.44,9.99188659]
[1734308704829,16.6281,225.52,225.44,9.99188659]
[1734308705017,16.6281,225.52,225.42,9.99188659]
[1734308705200,16.6281,225.52,225.42,4.99188659]
[1734308705530,16.6281,225.52,225.4,9.99188659]
[1734308705531,1.6444,225.51,225.4,9.99188659]
[1734308705741,1.6444,225.51,225.42,4.99188659]
[1734308706122,1.6444,225.51,225.38,4.99188659]
[1734308706123,14.9844,225.51,225.38,4.99188659]
[1734308706422,14.9844,225.51,225.36,4.99188659]
[1734308706732,13.34,225.49,225.36,4.99188659]
[1734308707236,20.14091363,225.49,225.34,9.99188659]
[1734308708304,13.34,225.47,225.34,9.99188659]
[1734308709136,13.34,225.47,225.34,4.99188659]
[1734308709338,23.43201363,225.48,225.38,4.99188659]
[1734308709339,41.0585,225.48,225.38,4.99188659]
[1734308710047,41.0585,225.48,225.35,5.0]
[1734308710345,41.0585,225.48,225.33,4.99188659]
[1734308710346,59.8780089,225.48,225.33,4.99188659]
[1734308710552,13.34,225.46,225.39,4.99188659]
[1734308710852,5.5429,225.52,225.51,4.99188659]
[1734308711221,5.5429,225.52,225.5,5.0]
[1734308711422,5.5429,225.52,225.46,9.99188659]
[1734308711639,5.5429,225.52,225.46,4.99188659]
[1734308712350,5.5429,225.52,225.44,9.99188659]
[1734308712546,5.5429,225.52,225.46,5.0]
[1734308712742,5.5429,225.52,225.44,9.99188659]
[1734308713250,5.5429,225.52,225.42,5.0]
[1734308713549,6.6657,225.51,225.42,4.99188659]
[1734308713738,6.6657,225.51,225.42,9.99188659]
[1734308714049,6.6657,225.51,225.42,4.99188659]
[1734308714418,16.6296,225.5,225.42,4.99188659]
[1734308715347,16.6296,225.5,225.42,9.99188659]
[1734308715527,1.6473,225.49,225.42,4.99188659]
[1734308715722,1.6473,225.49,225.4,5.0]
[1734308715723,1.6473,225.49,225.4,4.99188659]
[1734308715933,1.6473,225.49,225.42,4.99188659]
[1734308716341,1.6473,225.49,225.41,5.0]
[1734308716543,5.5437,225.48,225.42,9.99188659]
[1734308716743,5.5437,225.48,225.46,5.0]
[1734308717631,5.5437,225.48,225.45,4.99188659]
[1734308717939,5.5437,225.48,225.46,5.0]
[1734308718155,16.6311,225.48,225.41,4.99188659]
[1734308718341,16.6311,225.48,225.41,9.99188659]
[1734308718857,5.5437,225.48,225.45,4.99188659]
[1734308719032,5.5437,225.48,225.45,9.99188659]
[1734308720054,5.5437,225.48,225.42,9.99188659]
[1734308720055,16.6311,225.48,225.42,9.99188659]
[1734308720368,16.6311,225.48,225.42,4.99188659]
[1734308720535,16.6311,225.48,225.4,4.99188659]
[1734308720736,16.6311,225.48,225.39,5.0]
[1734308721350,16.6311,225.48,225.37,5.0]
[1734308721861,18.26013034,225.48,225.37,5.0]
[1734308722262,6.2378,225.47,225.37,2.7345]
[1734308722564,6.2378,225.47,225.35,7.72638659]
[1734308722769,6.2378,225.47,225.36,2.7345]
[1734308723247,6.2378,225.47,225.3,4.99188659]
[1734308723248,16.6326,225.46,225.3,4.99188659]
[1734308723772,16.6326,225.46,225.28,4.99188659]
[1734308723773,13.34,225.43,225.28,4.99188659]
[1734308724840,29.9756,225.42,225.28,4.99188659]
[1734308725152,16.6356,225.42,225.31,4.99188659]
[1734308725351,16.6356,225.42,225.23,25.53803032]
[1734308725352,29.9756,225.42,225.29,4.99188659]
[1734308725547,29.9756,225.42,225.23,6.3162]
[1734308725548,2.72698407,225.37,225.27,4.99188659]
[1734308725756,2.72698407,225.37,225.25,4.99188659]
[1734308725939,2.72698407,225.37,225.23,4.99188659]
[1734308725940,7.9269,225.36,225.23,4.99188659]
[1734308726146,7.9269,225.36,225.26,4.99188659]
[1734308726649,16.1261212,225.36,225.24,4.99188659]
[1734308726849,5.5469,225.35,225.22,4.99188659]
[1734308727054,5.5469,225.35,225.24,4.99188659]
[1734308727252,5.5469,225.35,225.18,6.343]
[1734308727253,18.8869,225.35,225.22,4.99188659]
[1734308727766,18.8869,225.35,225.15,18.55599068]
[1734308727956,18.8869,225.35,225.14,0.66600684]
[1734308728150,18.8869,225.35,225.14,19.22199752]
[1734308728370,5.5474,225.33,225.19,18.55599068]
[1734308728549,5.5474,225.33,225.21,18.55599068]
[1734308728869,5.5474,225.33,225.22,0.66580927]
[1734308730771,5.5474,225.33,225.14,18.55599068]
[1734308730977,5.5474,225.33,225.15,0.66605698]
[1734308732753,5.5474,225.33,225.16,18.55599068]
[1734308732955,5.5474,225.33,225.19,18.55599068]
[1734308733261,5.5474,225.33,225.2,0.66585713]
[1734308734660,7.9269,225.36,225.23,11.6082441]
[1734308734856,5.5469,225.35,225.2,0.66574985]
[1734308735055,5.5469,225.35,225.17,0.66587619]
[1734308735277,16.6407,225.35,225.17,0.66587619]
[1734308735659,16.6407,225.35,225.2,11.6082441]
[1734308735660,5.5469,225.35,225.2,11.6082441]
[1734308735865,5.5469,225.35,225.21,0.66580448]
[1734308736287,5.5469,225.35,225.21,12.27404858]
[1734308736588,5.5469,225.35,225.21,17.27404858]
[1734308737168,5.5469,225.35,225.21,12.27404858]
[1734308738080,5.5469,225.35,225.21,17.27404858]
[1734308738385,5.5469,225.35,225.21,0.66580448]
[1734308738684,5.5469,225.35,225.22,0.66581217]
[1734308739494,5.5469,225.35,225.2,0.66582059]
[1734308739996,16.6407,225.35,225.17,0.66584532]
[1734308740283,16.6407,225.35,225.15,17.27418829]
[1734308742753,16.6407,225.35,225.18,11.6082441]
[1734308742957,5.5469,225.35,225.19,0.66584058]
[1734308743157,5.5469,225.35,225.19,12.27408468]
[1734308743358,5.5469,225.35,225.2,11.6082441]
[1734308743562,5.5469,225.35,225.21,12.27404894]
[1734308743963,5.5469,225.35,225.21,0.66580484]
[1734308746204,5.5469,225.35,225.22,0.66579622]
[1734308747078,5.5469,225.35,225.2,0.66579438]
[1734308748101,5.5469,225.35,225.2,12.27403848]
[1734308749281,5.5469,225.35,225.2,0.66579438]
[1734308749488,5.5469,225.35,225.19,0.66587601]
[1734308751286,5.5469,225.35,225.2,11.6082441]
[1734308751612,5.5469,225.35,225.21,0.66580117]
[1734308751977,5.5469,225.35,225.24,11.6082441]
[1734308752278,7.9269,225.36,225.26,11.6082441]
[1734308752480,7.9269,225.36,225.28,11.6082441]
[1734308752481,1.6447,225.36,225.28,11.6082441]
[1734308752698,1.6447,225.36,225.29,0.66554281]
[1734308754205,1.6447,225.36,225.25,0.66561533]
[1734308754514,5.5469,225.35,225.25,0.66561533]
[1734308755202,5.5469,225.35,225.24,0.6657306]
[1734308756197,5.5469,225.35,225.22,0.66570517]
[1734308757981,1.6447,225.36,225.23,11.6082441]
[1734308758294,1.6447,225.36,225.24,0.66567746]
[1734308762120,6.4065,225.35,225.19,5.0]
[1734308762331,6.4065,225.35,225.17,11.6082441]
[1734308762332,6.4065,225.35,225.2,0.66584699]
[1734308762695,6.4065,225.35,225.2,17.27409109]
[1734308763000,6.4065,225.35,225.2,12.27409109]
[1734308763423,5.5471,225.34,225.2,0.66584699]
[1734308763627,5.5471,225.34,225.18,5.66578798]
[1734308764707,5.5471,225.34,225.18,0.66578798]
[1734308766092,5.5471,225.34,225.14,0.66592928]
[1734308766093,1.6255,225.3,225.14,0.66592928]
[1734308766290,1.6255,225.3,225.13,5.0]
[1734308766716,1.6255,225.3,225.14,0.66604946]
[1734308767027,1.6255,225.3,225.13,5.0]
[1734308767229,1.5983,225.28,225.11,28.518374]
[1734308767433,1.5983,225.26,225.11,28.518374]
[1734308768099,5.5493,225.25,225.11,28.518374]
[1734308768510,5.5493,225.25,225.06,0.66625238]
[1734308768835,7.7402,225.24,225.06,0.66625238]
[1734308769534,7.7402,225.24,225.06,12.27449648]
[1734308769843,5.5498,225.23,225.06,12.27449648]
[1734308770202,5.5498,225.23,225.06,0.66625238]
[1734308770635,6.1525,225.21,225.03,0.66633462]
[1734308770837,6.1525,225.21,225.01,0.66635661]
[1734308770838,1.6334,225.2,225.01,0.66635661]
[1734308771040,29.9895,225.23,225.01,0.66635661]
[1734308771041,1.6334,225.18,225.01,0.66635661]
[1734308771813,5.5513,225.17,225.01,0.66635661]
[1734308772709,7.7028,225.16,224.97,0.66646511]
[1734308772938,6.0836,225.14,224.97,0.66646511]
[1734308773241,1.6192,225.13,224.94,0.6665844]
[1734308773447,1.6192,225.13,224.94,12.2748285]
[1734308773810,5.5525,225.12,224.94,0.6665844]
[1734308774118,6.4776,225.1,224.94,0.6665844]
[1734308774319,6.4776,225.1,224.92,0.66667504]
[1734308775340,5.5533,225.09,224.92,12.27491914]
[1734308775513,5.5533,225.09,224.92,0.66667504]
[1734308776143,1.6397,225.08,224.91,0.66671935]
[1734308776847,5.5538,225.07,224.91,0.66671935]
[1734308777343,8.086,225.06,224.91,0.66671935]
[1734308777517,8.086,225.06,224.89,0.66677837]
[1734308778048,1.5618,225.03,224.85,0.66682973]
[1734308779008,5.555,225.02,224.86,0.66689539]
[1734308779530,1.5618,225.03,224.93,11.6082441]
[1734308779771,1.5618,225.03,224.9,12.2749004]
[1734308779937,7.1168,225.03,224.9,0.6666563]
[1734308780835,7.1168,225.03,224.88,0.66679796]
[1734308781637,7.1168,225.03,224.85,0.6668108]
[1734308781823,6.1123,225.01,224.85,0.6668108]
[1734308782743,6.1123,225.01,224.86,11.6082441]
[1734308782913,6.1123,225.01,224.89,11.6082441]
[1734308783111,6.1123,225.01,224.9,0.66670496]
[1734308785547,6.1123,225.01,224.94,11.6082441]
[1734308785761,1.523,225.02,224.97,11.6082441]
[1734308785976,1.523,225.02,224.98,0.66650235]
[1734308786137,1.6365,225.07,224.99,11.6082441]
[1734308786329,1.6365,225.07,224.93,5.0]
[1734308786330,1.6365,225.07,225.0,0.66644445]
[1734308787465,1.6365,225.07,224.98,0.66650706]
[1734308788337,1.6365,225.07,224.98,12.27475116]
[1734308788953,1.6365,225.07,225.02,11.6082441]
[1734308789167,6.4089,225.11,225.04,11.6082441]
[1734308789455,6.4089,225.11,225.03,0.66638605]
[1734308789456,6.4089,225.11,225.06,11.6082441]
[1734308789671,1.66,225.12,225.08,11.6082441]
[1734308789838,1.66,225.12,225.09,0.66621714]
[1734308790540,1.6644,225.18,225.11,11.6082441]
[1734308790731,1.6644,225.18,225.12,12.27429859]
[1734308790937,1.6644,225.18,225.12,0.66605449]
[1734308791554,1.6644,225.18,225.07,12.27441265]
[1734308791735,1.6644,225.18,225.08,11.6082441]
[1734308791935,1.6644,225.18,225.09,19.25577353]
[1734308792156,1.6644,225.18,225.12,18.58960485]
[1734308792360,1.6644,225.18,225.13,0.66603029]
[1734308795742,6.2368,225.21,225.13,19.25563514]
[1734308795946,1.5315,225.24,225.15,18.58960485]
[1734308796252,1.5315,225.24,225.16,0.66595373]
[1734308796646,1.5315,225.24,225.17,18.58960485]
[1734308796850,1.5315,225.24,225.18,0.66589017]
[1734308797954,1.6654,225.3,225.19,18.58960485]
[1734308798156,1.6654,225.3,225.2,0.66584101]
[1734308798470,1.6654,225.3,225.23,18.58960485]
[1734308798708,1.6654,225.3,225.24,0.66569829]
[1734308798985,1.6654,225.3,225.21,0.66569831]
[1734308799160,1.6654,225.3,225.15,18.58960485]
[1734308799355,1.6654,225.3,225.16,0.66592339]
[1734308801373,5.5484,225.29,225.14,0.66603222]
[1734308803174,5.5484,225.29,225.12,0.66608453]
[1734308803460,6.1242,225.28,225.12,0.66608453]
[1734308803654,6.1242,225.28,225.13,18.58960485]
[1734308803860,6.1242,225.28,225.14,0.66607196]
[1734308804597,1.506,225.27,225.12,0.66607449]
[1734308804886,7.0548,225.27,225.09,19.25572308]
[1734308806582,7.0548,225.27,225.11,18.58960485]
[1734308806894,7.0548,225.27,225.12,0.66612375]
[1734308807097,7.0548,225.27,225.12,19.2557286]
[1734308807279,7.0548,225.27,225.13,18.58960485]
[1734308807477,7.0548,225.27,225.14,0.6660297]
[1734308810863,7.0548,225.27,225.08,18.58960485]
[1734308810864,1.589,225.26,225.08,18.58960485]
[1734308811086,1.589,225.26,225.09,0.66617862]
[1734308812094,5.5493,225.25,225.09,0.66617862]
[1734308812288,6.5781,225.24,225.09,0.66617862]
[1734308812598,5.5493,225.25,225.04,28.52735567]
[1734308812599,1.589,225.2,225.04,28.52735567]
[1734308812899,1.589,225.2,225.04,40.81229286]
[1734308813567,5.5508,225.19,225.04,40.81229286]
[1734308813979,1.589,225.2,225.09,11.61858091]
[1734308814177,1.589,225.2,225.14,11.61858091]
[1734308814400,1.589,225.2,225.15,0.66604718]
[1734308814992,1.589,225.2,225.16,11.61858091]
[1734308815186,1.589,225.2,225.17,0.66594252]
[1734308816381,1.589,225.2,225.12,19.24417467]
[1734308816705,1.589,225.2,225.12,0.66599853]
[1734308817201,1.589,225.2,225.12,19.24417467]
[1734308817375,1.589,225.2,225.13,18.57817614]
[1734308817575,1.589,225.2,225.12,0.66599853]
[1734308817576,1.589,225.2,225.14,19.24426025]
[1734308817785,1.589,225.2,225.14,0.66608411]
[1734308818192,1.589,225.2,225.11,0.66607109]
[1734308819673,1.589,225.2,225.11,19.24424723]
[1734308820283,1.589,225.2,225.11,0.66607109]
[1734308820475,1.589,225.2,225.1,0.66616784]
[1734308821509,1.589,225.2,225.08,19.24438629]
[1734308822316,1.589,225.2,225.12,18.57817614]
[1734308822611,1.589,225.2,225.13,19.24424994]
[1734308822819,1.589,225.2,225.14,18.57817614]
[1734308823005,1.589,225.2,225.15,0.66600695]
[1734308823482,7.6263,225.26,225.17,18.57817614]
[1734308823687,7.6263,225.26,225.15,0.66600695]
[1734308823688,7.6263,225.26,225.19,18.57817614]
[1734308824019,7.6263,225.26,225.15,5.0]
[1734308824020,1.5195,225.26,225.22,18.57817614]
[1734308824185,1.5195,225.26,225.24,18.57817614]
[1734308824384,7.8978,225.31,225.24,18.57817614]
[1734308824786,7.8978,225.31,225.23,0.66578478]
[1734308827798,7.8978,225.31,225.24,18.57817614]
[1734308827799,1.6279,225.31,225.24,18.57817614]
[1734308827997,1.6279,225.31,225.25,0.66566429]
[1734308828425,1.6279,225.31,225.23,0.6656616]
[1734308828594,1.6279,225.31,225.2,18.57817614]
[1734308828795,1.6279,225.31,225.21,0.66583569]
[1734308832023,1.6279,225.31,225.16,19.24403695]
[1734308832431,1.6279,225.31,225.18,18.57817614]
[1734308832598,1.6279,225.31,225.19,0.66591139]
[1734308833120,1.6279,225.31,225.2,18.57817614]
[1734308833309,1.6279,225.31,225.22,18.57817614]
[1734308833515,1.6279,225.31,225.23,0.66577267]
[1734308834095,1.6279,225.31,225.2,18.57817614]
[1734308834305,1.6279,225.31,225.22,18.57817614]
[1734308834519,1.6279,225.31,225.23,0.66577261]
[1734308834908,1.6279,225.31,225.23,0.66577567]
[1734308836223,1.6279,225.31,225.2,11.60482195]
[1734308836428,1.6279,225.31,225.09,22.2127]
[1734308836429,1.6279,225.31,225.18,11.60482195]
[1734308836629,1.6279,225.31,225.19,0.66592008]
[1734308836833,1.6279,225.31,225.2,11.60482195]
[1734308837132,1.6279,225.31,225.22,11.60482195]
[1734308837298,1.6279,225.31,225.16,16.1032]
[1734308837299,1.6279,225.31,225.24,11.60482195]
[1734308837500,1.6279,225.31,225.25,0.66574347]